[Event "XXII Obert Internacional d'Escacs Sant Marti 2022"]
[Site "Barcelona, Spain"]
[Date "2022.07.21"]
[Round "9.6"]
[White "Noboa Silva, Kevin"]
[Black "Diermair, Andreas"]
[Result "1/2-1/2"]
[TimeControl "1.30 fb 30"]
[WhiteElo "2304"]
[BlackElo "2452"]

1. d4 {[%clk 01:30:44]} {[%emt 00:00:16]} Nf6 {[%clk 01:30:51]} {[%emt
00:00:10]} 2. c4 {[%clk 01:30:55]} {[%emt 00:00:19]} e6 {[%clk 01:31:16]}
{[%emt 00:00:03]} 3. Nc3 {[%clk 01:31:00]} {[%emt 00:00:24]} Bb4 {[%clk
01:31:40]} {[%emt 00:00:08]} 4. e3 {[%clk 01:31:08]} {[%emt 00:00:21]} O-O
{[%clk 01:30:33]} {[%emt 00:01:37]} 5. Bd3 {[%clk 01:30:59]} {[%emt 00:00:39]}
d5 {[%clk 01:30:58]} {[%emt 00:00:05]} 6. a3 {[%clk 01:30:59]} {[%emt
00:00:30]} Bxc3+ {[%clk 01:31:22]} {[%emt 00:00:06]} 7. bxc3 {[%clk 01:31:21]}
{[%emt 00:00:08]} dxc4 {[%clk 01:31:40]} {[%emt 00:00:12]} 8. Bxc4 {[%clk
01:31:39]} {[%emt 00:00:12]} c5 {[%clk 01:32:00]} {[%emt 00:00:10]} 9. Ne2
{[%clk 01:31:01]} {[%emt 00:01:08]} Qc7 {[%clk 01:32:20]} {[%emt 00:00:10]} 10.
Ba2 {[%clk 01:30:48]} {[%emt 00:00:43]} b6 {[%clk 01:31:26]} {[%emt 00:01:26]}
11. O-O {[%clk 01:30:28]} {[%emt 00:00:48]} Ba6 {[%clk 01:30:42]} {[%emt
00:01:14]} 12. Bb2 {[%clk 01:27:51]} {[%emt 00:03:08]} Rd8 {[%clk 01:29:34]}
{[%emt 00:01:38]} 13. Rc1 {[%clk 01:26:05]} {[%emt 00:02:15]} Nc6 {[%clk
01:25:52]} {[%emt 00:04:14]} 14. c4 {[%clk 01:24:32]} {[%emt 00:02:02]} cxd4
{[%clk 01:21:57]} {[%emt 00:04:25]} 15. exd4 {[%clk 01:24:33]} {[%emt
00:00:28]} b5 {[%clk 01:20:01]} {[%emt 00:02:26]} 16. d5 {[%clk 01:21:17]}
{[%emt 00:03:47]} bxc4 {[%clk 01:19:34]} {[%emt 00:00:58]} 17. Bxc4 {[%clk
01:20:35]} {[%emt 00:01:11]} Bxc4 {[%clk 01:19:38]} {[%emt 00:00:26]} 18. Rxc4
{[%clk 01:21:00]} {[%emt 00:00:05]} exd5 {[%clk 01:19:18]} {[%emt 00:00:50]} 19.
Rc2 {[%clk 01:21:09]} {[%emt 00:00:21]} Qd6 {[%clk 01:18:10]} {[%emt 00:01:38]}
20. Ng3 {[%clk 01:19:51]} {[%emt 00:01:48]} Rac8 {[%clk 01:10:28]} {[%emt
00:08:12]} 21. Re1 {[%clk 00:58:59]} {[%emt 00:21:22]} Re8 {[%clk 00:58:06]}
{[%emt 00:12:52]} 22. Rxe8+ {[%clk 00:33:44]} {[%emt 00:25:46]} Rxe8 {[%clk
00:57:24]} {[%emt 00:01:11]} 23. Bxf6 {[%clk 00:32:17]} {[%emt 00:01:57]} Qxf6
{[%clk 00:57:03]} {[%emt 00:00:51]} 24. Qxd5 {[%clk 00:30:06]} {[%emt
00:02:40]} Qd4 {[%clk 00:41:06]} {[%emt 00:16:26]} 25. Qxd4 {[%clk 00:27:54]}
{[%emt 00:02:42]} Nxd4 {[%clk 00:41:30]} {[%emt 00:00:06]} 26. Rc1 {[%clk
00:27:45]} {[%emt 00:00:39]} g6 {[%clk 00:41:52]} {[%emt 00:00:08]} 27. h3
{[%clk 00:24:00]} {[%emt 00:04:15]} h5 {[%clk 00:38:55]} {[%emt 00:03:27]} 28.
Rc4 {[%clk 00:22:20]} {[%emt 00:02:10]} Re1+ {[%clk 00:37:40]} {[%emt
00:01:45]} 29. Kh2 {[%clk 00:22:48]} {[%emt 00:00:03]} Nb3 {[%clk 00:34:44]}
{[%emt 00:03:26]} 30. Rb4 {[%clk 00:20:24]} {[%emt 00:02:53]} Nd2 {[%clk
00:34:11]} {[%emt 00:01:03]} 31. Rd4 {[%clk 00:15:15]} {[%emt 00:05:40]} Rd1
{[%clk 00:34:04]} {[%emt 00:00:36]} 32. Ra4 {[%clk 00:15:31]} {[%emt 00:00:14]}
a5 {[%clk 00:31:02]} {[%emt 00:03:32]} 33. h4 {[%clk 00:14:46]} {[%emt
00:01:15]} Nb3 {[%clk 00:31:14]} {[%emt 00:00:18]} 34. Ne4 {[%clk 00:14:33]}
{[%emt 00:00:42]} Kg7 {[%emt 00:01:55]} 1/2-1/2

[Event "XXII Obert Internacional d'Escacs Sant Marti 2022"]
[Site "Barcelona, Spain"]
[Date "2022.07.21"]
[Round "9.7"]
[White "Perpinya Rofes, Lluis Maria"]
[Black "Munoz, Miguel"]
[Result "1/2-1/2"]
[TimeControl "1.30 fb 30"]
[WhiteElo "2297"]
[BlackElo "2408"]

1. e4 {[%clk 01:30:56]} {[%emt 00:00:03]} d5 {[%clk 01:21:47]} {[%emt
00:09:13]} 2. exd5 {[%clk 01:31:08]} {[%emt 00:00:19]} Qxd5 {[%clk 01:22:12]}
{[%emt 00:00:05]} 3. Nc3 {[%clk 01:31:32]} {[%emt 00:00:07]} Qa5 {[%clk
01:22:32]} {[%emt 00:00:10]} 4. d4 {[%clk 01:30:59]} {[%emt 00:01:03]} Nf6
{[%clk 01:22:54]} {[%emt 00:00:08]} 5. Nf3 {[%clk 01:31:24]} {[%emt 00:00:05]}
Bg4 {[%clk 01:23:17]} {[%emt 00:00:07]} 6. h3 {[%clk 01:31:27]} {[%emt
00:00:27]} Bxf3 {[%clk 01:23:40]} {[%emt 00:00:07]} 7. Qxf3 {[%clk 01:31:47]}
{[%emt 00:00:10]} c6 {[%clk 01:24:03]} {[%emt 00:00:06]} 8. Bd2 {[%clk
01:31:51]} {[%emt 00:00:26]} Nbd7 {[%clk 01:24:24]} {[%emt 00:00:09]} 9. O-O-O
{[%clk 01:30:52]} {[%emt 00:01:29]} e6 {[%clk 01:24:43]} {[%emt 00:00:11]} 10.
Kb1 {[%clk 01:28:49]} {[%emt 00:02:33]} Bb4 {[%clk 01:24:55]} {[%emt 00:00:17]}
11. a3 {[%clk 01:27:31]} {[%emt 00:01:49]} Bxc3 {[%clk 01:25:09]} {[%emt
00:00:15]} 12. Bxc3 {[%clk 01:26:38]} {[%emt 00:01:24]} Qd5 {[%clk 01:25:18]}
{[%emt 00:00:20]} 13. Qg3 {[%clk 01:25:22]} {[%emt 00:01:45]} O-O {[%clk
01:19:19]} {[%emt 00:06:29]} 14. Bd3 {[%clk 01:18:55]} {[%emt 00:06:57]} a5
{[%clk 01:18:13]} {[%emt 00:01:37]} 15. f3 {[%clk 01:12:12]} {[%emt 00:07:14]}
b5 {[%clk 01:11:34]} {[%emt 00:07:09]} 16. Be4 {[%clk 01:04:11]} {[%emt
00:08:31]} Nxe4 {[%clk 01:10:06]} {[%emt 00:01:57]} 17. fxe4 {[%clk 01:04:35]}
{[%emt 00:00:06]} Qxe4 {[%clk 01:10:27]} {[%emt 00:00:09]} 18. d5 {[%clk
01:04:41]} {[%emt 00:00:24]} e5 {[%clk 01:10:48]} {[%emt 00:00:08]} 19. Rhe1
{[%clk 01:04:48]} {[%emt 00:00:24]} Qc4 {[%clk 01:10:56]} {[%emt 00:00:21]} 20.
b3 {[%clk 01:03:58]} {[%emt 00:01:21]} Qc5 {[%clk 01:11:00]} {[%emt 00:00:25]}
21. Rxe5 {[%clk 01:04:03]} {[%emt 00:00:27]} f6 {[%clk 01:03:18]} {[%emt
00:08:11]} 22. Re6 {[%clk 00:50:08]} {[%emt 00:14:25]} cxd5 {[%clk 01:01:04]}
{[%emt 00:02:44]} 23. b4 {[%clk 00:23:03]} {[%emt 00:27:36]} Qc4 {[%clk
00:58:33]} {[%emt 00:03:00]} 24. Rd4 {[%clk 00:22:47]} {[%emt 00:00:47]} Qf1+
{[%clk 00:58:56]} {[%emt 00:00:06]} 25. Re1 {[%clk 00:23:13]} {[%emt 00:00:03]}
Qf5 {[%clk 00:59:05]} {[%emt 00:00:22]} 26. Rf4 {[%clk 00:18:35]} {[%emt
00:05:08]} Qh5 {[%clk 00:57:38]} {[%emt 00:01:56]} 27. Qd3 {[%clk 00:13:20]}
{[%emt 00:05:46]} axb4 {[%clk 00:50:15]} {[%emt 00:07:54]} 28. Bxb4 {[%clk
00:12:21]} {[%emt 00:01:29]} Rfe8 {[%clk 00:48:58]} {[%emt 00:01:46]} 29. Rxe8+
{[%clk 00:08:52]} {[%emt 00:04:01]} Rxe8 {[%clk 00:48:38]} {[%emt 00:00:49]} 30.
Rf5 {[%clk 00:08:14]} {[%emt 00:01:08]} Qf7 {[%clk 00:48:37]} {[%emt 00:00:31]}
31. Rxd5 {[%clk 00:08:05]} {[%emt 00:00:40]} Ne5 {[%clk 00:46:33]} {[%emt
00:02:33]} 32. Qxb5 {[%clk 00:08:18]} {[%emt 00:00:17]} Rc8 {[%clk 00:46:50]}
{[%emt 00:00:12]} 33. Rd4 {[%clk 00:06:48]} {[%emt 00:02:01]} Kh8 {[%clk
00:46:06]} {[%emt 00:01:14]} 34. Qd5 {[%clk 00:06:09]} {[%emt 00:01:09]} Qe8
{[%clk 00:46:26]} {[%emt 00:00:10]} 35. Qb7 {[%clk 00:04:11]} {[%emt 00:02:28]}
h6 {[%clk 00:45:16]} {[%emt 00:01:40]} 36. Qe7 {[%clk 00:03:38]} {[%emt
00:01:03]} 1/2-1/2

[Event "XXII Obert Internacional d'Escacs Sant Marti 2022"]
[Site "Barcelona, Spain"]
[Date "2022.07.21"]
[Round "9.8"]
[White "Phadke, Sohan"]
[Black "Barbero Sendic, Alejandro"]
[Result "1/2-1/2"]
[TimeControl "1.30 fb 30"]
[WhiteElo "2177"]
[BlackElo "2326"]

1. e4 {[%clk 01:30:37]} {[%emt 00:00:22]} e5 {[%clk 01:30:44]} {[%emt
00:00:16]} 2. Nc3 {[%clk 01:30:48]} {[%emt 00:00:19]} Nf6 {[%clk 01:31:03]}
{[%emt 00:00:12]} 3. d4 {[%clk 01:31:07]} {[%emt 00:00:10]} exd4 {[%clk
01:30:23]} {[%emt 00:01:11]} 4. Qxd4 {[%clk 01:31:18]} {[%emt 00:00:16]} Nc6
{[%clk 01:30:41]} {[%emt 00:00:14]} 5. Qd3 {[%clk 01:31:41]} {[%emt 00:00:07]}
Bb4 {[%clk 01:26:20]} {[%emt 00:04:51]} 6. Bd2 {[%clk 01:31:44]} {[%emt
00:00:27]} O-O {[%clk 01:26:16]} {[%emt 00:00:34]} 7. O-O-O {[%clk 01:31:53]}
{[%emt 00:00:21]} Re8 {[%clk 01:26:16]} {[%emt 00:00:29]} 8. Nge2 {[%clk
01:32:08]} {[%emt 00:00:15]} d6 {[%clk 01:25:05]} {[%emt 00:01:42]} 9. Bg5
{[%clk 01:26:47]} {[%emt 00:05:52]} h6 {[%clk 01:19:37]} {[%emt 00:05:57]} 10.
Bxf6 {[%clk 01:25:20]} {[%emt 00:01:56]} Qxf6 {[%clk 01:19:58]} {[%emt
00:00:09]} 11. Nd5 {[%clk 01:25:42]} {[%emt 00:00:08]} Qd8 {[%clk 01:19:05]}
{[%emt 00:01:24]} 12. Nxb4 {[%clk 01:24:40]} {[%emt 00:01:32]} Nxb4 {[%clk
01:19:27]} {[%emt 00:00:08]} 13. Qd2 {[%clk 01:25:06]} {[%emt 00:00:04]} Na6
{[%clk 01:12:04]} {[%emt 00:07:53]} 14. f3 {[%clk 01:10:30]} {[%emt 00:15:06]}
Nc5 {[%clk 01:09:48]} {[%emt 00:02:46]} 15. Kb1 {[%clk 01:02:23]} {[%emt
00:08:38]} a5 {[%clk 00:57:02]} {[%emt 00:13:15]} 16. h4 {[%clk 00:50:10]}
{[%emt 00:12:43]} Qf6 {[%clk 00:55:16]} {[%emt 00:02:15]} 17. Nf4 {[%clk
00:32:46]} {[%emt 00:17:55]} Na4 {[%clk 00:42:56]} {[%emt 00:12:50]} 18. c3
{[%clk 00:33:07]} {[%emt 00:00:09]} Nc5 {[%clk 00:43:17]} {[%emt 00:00:09]} 19.
Nd5 {[%clk 00:30:38]} {[%emt 00:02:59]} Qd8 {[%clk 00:43:45]} {[%emt 00:00:02]}
20. g4 {[%clk 00:30:04]} {[%emt 00:01:04]} Be6 {[%clk 00:39:37]} {[%emt
00:04:38]} 21. Nf4 {[%clk 00:25:10]} {[%emt 00:05:24]} g6 {[%clk 00:30:07]}
{[%emt 00:10:00]} 22. g5 {[%clk 00:23:07]} {[%emt 00:02:33]} h5 {[%clk
00:30:26]} {[%emt 00:00:11]} 23. Rg1 {[%clk 00:22:15]} {[%emt 00:01:22]} Nd7
{[%clk 00:25:35]} {[%emt 00:05:22]} 24. Nxe6 {[%clk 00:17:00]} {[%emt
00:05:44]} Rxe6 {[%clk 00:24:42]} {[%emt 00:01:24]} 25. Bc4 {[%clk 00:13:34]}
{[%emt 00:03:57]} Re7 {[%clk 00:22:42]} {[%emt 00:02:30]} 26. f4 {[%clk
00:13:21]} {[%emt 00:00:42]} Nc5 {[%clk 00:21:23]} {[%emt 00:01:49]} 27. f5
{[%clk 00:11:47]} {[%emt 00:02:04]} Nxe4 {[%clk 00:20:11]} {[%emt 00:01:43]} 28.
Qf4 {[%clk 00:12:12]} {[%emt 00:00:04]} Kh7 {[%clk 00:20:10]} {[%emt 00:00:31]}
29. Bxf7 {[%clk 00:11:25]} {[%emt 00:01:17]} Rxf7 {[%clk 00:20:38]} {[%emt
00:00:01]} 30. fxg6+ {[%clk 00:11:51]} {[%emt 00:00:05]} Kxg6 {[%clk 00:20:55]}
{[%emt 00:00:14]} 31. Qxe4+ {[%clk 00:12:17]} {[%emt 00:00:03]} Kg7 {[%clk
00:21:08]} {[%emt 00:00:16]} 32. Rgf1 {[%clk 00:12:01]} {[%emt 00:00:46]} Qe7
{[%clk 00:20:13]} {[%emt 00:01:26]} 33. Qd4+ {[%clk 00:06:04]} {[%emt
00:06:27]} Kg8 {[%clk 00:18:42]} {[%emt 00:02:01]} 34. Rf6 {[%clk 00:04:41]}
{[%emt 00:01:53]} Re8 {[%clk 00:18:04]} {[%emt 00:01:08]} 35. Rdf1 {[%clk
00:05:05]} {[%emt 00:00:05]} Rxf6 {[%clk 00:17:41]} {[%emt 00:00:54]} 36. gxf6
{[%clk 00:05:07]} {[%emt 00:00:29]} Qe4+ {[%clk 00:18:03]} {[%emt 00:00:07]} 37.
Kc1 {[%clk 00:05:26]} {[%emt 00:00:12]} Kf7 {[%clk 00:17:59]} {[%emt 00:00:33]}
38. Qd1 {[%clk 00:05:36]} {[%emt 00:00:19]} Re5 {[%clk 00:16:58]} {[%emt
00:01:32]} 39. Qb3+ {[%clk 00:03:57]} {[%emt 00:02:10]} Kf8 {[%clk 00:15:19]}
{[%emt 00:02:08]} 40. Rd1 {[%clk 00:04:07]} {[%emt 00:00:20]} Qf4+ {[%clk
00:14:45]} {[%emt 00:01:03]} 41. Kb1 {[%clk 00:04:35]} {[%emt 00:00:04]} Qe4+
{[%clk 00:14:16]} {[%emt 00:00:58]} 42. Qc2 {[%clk 00:04:04]} {[%emt 00:01:01]}
Qxc2+ {[%clk 00:13:23]} {[%emt 00:01:23]} 43. Kxc2 {[%clk 00:04:33]} {[%emt
00:00:02]} Kf7 {[%clk 00:13:39]} {[%emt 00:00:13]} 44. Rf1 {[%clk 00:03:39]}
{[%emt 00:01:24]} Re4 {[%clk 00:08:16]} {[%emt 00:05:53]} 45. Rf5 {[%clk
00:03:25]} {[%emt 00:00:44]} Rxh4 {[%clk 00:08:40]} {[%emt 00:00:06]} 46. Rxa5
{[%clk 00:03:52]} {[%emt 00:00:03]} Kxf6 {[%clk 00:07:14]} {[%emt 00:01:56]} 47.
Ra7 {[%clk 00:04:20]} {[%emt 00:00:02]} Rc4 {[%clk 00:06:17]} {[%emt 00:01:27]}
48. Rxb7 {[%clk 00:04:39]} {[%emt 00:00:11]} h4 {[%clk 00:05:59]} {[%emt
00:00:48]} 49. Rb8 {[%clk 00:04:51]} {[%emt 00:00:18]} Kg7 {[%clk 00:05:10]}
{[%emt 00:01:19]} 50. Re8 {[%clk 00:04:25]} {[%emt 00:00:56]} h3 {[%clk
00:03:53]} {[%emt 00:01:46]} 51. Re2 {[%clk 00:04:23]} {[%emt 00:00:32]} Rh4
{[%clk 00:03:46]} {[%emt 00:00:37]} 52. Rh2 {[%clk 00:04:52]} {[%emt 00:00:01]}
Kg6 {[%clk 00:02:21]} {[%emt 00:01:56]} 53. Kd3 {[%clk 00:05:20]} {[%emt
00:00:01]} Kf5 {[%clk 00:02:41]} {[%emt 00:00:09]} 54. Ke3 {[%clk 00:05:48]}
{[%emt 00:00:02]} Kg4 {[%clk 00:03:03]} {[%emt 00:00:08]} 55. Kf2 {[%clk
00:06:16]} {[%emt 00:00:03]} Rh8 {[%clk 00:03:26]} {[%emt 00:00:07]} 56. Kg1
{[%clk 00:06:42]} {[%emt 00:00:04]} Ra8 {[%clk 00:00:49]} {[%emt 00:03:08]} 57.
a3 {[%clk 00:06:57]} {[%emt 00:00:15]} Re8 {[%emt 00:00:59]} 1/2-1/2

[Event "XXII Obert Internacional d'Escacs Sant Marti 2022"]
[Site "Barcelona, Spain"]
[Date "2022.07.21"]
[Round "9.9"]
[White "Lindh, Fredrik"]
[Black "Persson, Andreas"]
[Result "1-0"]
[TimeControl "1.30 fb 30"]
[WhiteElo "2287"]
[BlackElo "2154"]

1. e4 {[%clk 01:26:05]} {[%emt 00:04:55]} e5 {[%clk 01:30:45]} {[%emt
00:00:15]} 2. Nf3 {[%clk 01:26:30]} {[%emt 00:00:05]} Nc6 {[%clk 01:31:01]}
{[%emt 00:00:14]} 3. Bb5 {[%clk 01:26:55]} {[%emt 00:00:06]} a6 {[%clk
01:31:10]} {[%emt 00:00:20]} 4. Ba4 {[%clk 01:27:20]} {[%emt 00:00:05]} Nf6
{[%clk 01:31:18]} {[%emt 00:00:22]} 5. O-O {[%clk 01:27:44]} {[%emt 00:00:06]}
Be7 {[%clk 01:31:26]} {[%emt 00:00:22]} 6. Re1 {[%clk 01:28:07]} {[%emt
00:00:07]} b5 {[%clk 01:31:29]} {[%emt 00:00:26]} 7. Bb3 {[%clk 01:28:33]}
{[%emt 00:00:06]} O-O {[%clk 01:31:34]} {[%emt 00:00:24]} 8. h3 {[%clk
01:28:57]} {[%emt 00:00:05]} Bb7 {[%clk 01:31:17]} {[%emt 00:00:47]} 9. d3
{[%clk 01:29:17]} {[%emt 00:00:11]} d5 {[%clk 01:29:10]} {[%emt 00:02:38]} 10.
exd5 {[%clk 01:29:12]} {[%emt 00:00:35]} Nxd5 {[%clk 01:29:32]} {[%emt
00:00:07]} 11. Nc3 {[%clk 01:29:34]} {[%emt 00:00:08]} Nxc3 {[%clk 01:25:11]}
{[%emt 00:04:51]} 12. bxc3 {[%clk 01:29:59]} {[%emt 00:00:05]} Bf6 {[%clk
01:22:11]} {[%emt 00:03:31]} 13. Nd2 {[%clk 01:24:21]} {[%emt 00:06:08]} Na5
{[%clk 01:16:46]} {[%emt 00:05:54]} 14. Ba3 {[%clk 00:51:45]} {[%emt 00:33:06]}
Re8 {[%clk 01:15:05]} {[%emt 00:02:11]} 15. Ne4 {[%clk 00:50:13]} {[%emt
00:02:02]} Be7 {[%clk 01:06:35]} {[%emt 00:09:00]} 16. Bxe7 {[%clk 00:34:20]}
{[%emt 00:16:23]} Qxe7 {[%clk 01:06:15]} {[%emt 00:00:51]} 17. Qh5 {[%clk
00:28:05]} {[%emt 00:06:44]} Nxb3 {[%clk 01:00:23]} {[%emt 00:06:22]} 18. axb3
{[%clk 00:28:18]} {[%emt 00:00:18]} g6 {[%clk 00:47:19]} {[%emt 00:13:34]} 19.
Qf3 {[%clk 00:27:51]} {[%emt 00:00:56]} Kg7 {[%clk 00:43:15]} {[%emt 00:04:34]}
20. g4 {[%clk 00:28:09]} {[%emt 00:00:12]} h5 {[%clk 00:38:57]} {[%emt
00:04:47]} 21. Qg3 {[%clk 00:25:16]} {[%emt 00:03:24]} hxg4 {[%emt 00:01:50]}
22. hxg4 {[%clk 00:25:40]} {[%emt 00:00:04]} Rh8 {[%clk 00:37:22]} {[%emt
00:00:47]} 23. f3 {[%clk 00:24:34]} {[%emt 00:01:36]} Bxe4 {[%clk 00:33:07]}
{[%emt 00:04:45]} 24. Rxe4 {[%clk 00:24:29]} {[%emt 00:00:35]} Qc5+ {[%clk
00:33:16]} {[%emt 00:00:22]} 25. Kg2 {[%clk 00:23:07]} {[%emt 00:01:51]} Qxc3
{[%clk 00:23:21]} {[%emt 00:10:25]} 26. Qxe5+ {[%clk 00:23:27]} {[%emt
00:00:10]} Qxe5 {[%clk 00:23:42]} {[%emt 00:00:09]} 27. Rxe5 {[%clk 00:23:54]}
{[%emt 00:00:03]} Rhe8 {[%clk 00:19:12]} {[%emt 00:05:01]} 28. Rc5 {[%clk
00:23:07]} {[%emt 00:01:16]} Re2+ {[%clk 00:16:51]} {[%emt 00:02:51]} 29. Kg3
{[%clk 00:22:33]} {[%emt 00:01:03]} Rh8 {[%clk 00:16:42]} {[%emt 00:00:39]} 30.
Rxa6 {[%clk 00:21:20]} {[%emt 00:01:45]} Rhh2 {[%clk 00:16:17]} {[%emt
00:00:55]} 31. Rac6 {[%clk 00:20:06]} {[%emt 00:01:44]} Reg2+ {[%clk 00:14:09]}
{[%emt 00:02:38]} 32. Kf4 {[%clk 00:20:30]} {[%emt 00:00:05]} Rh3 {[%clk
00:14:20]} {[%emt 00:00:18]} 33. d4 {[%clk 00:18:25]} {[%emt 00:02:37]} b4
{[%clk 00:14:13]} {[%emt 00:00:37]} 34. Re5 {[%clk 00:16:45]} {[%emt 00:02:09]}
Rd2 {[%clk 00:11:43]} {[%emt 00:03:01]} 35. Rxc7 {[%clk 00:14:07]} {[%emt
00:03:08]} Rxd4+ {[%clk 00:11:32]} {[%emt 00:00:40]} 36. Re4 {[%clk 00:14:33]}
{[%emt 00:00:04]} Rd6 {[%clk 00:11:27]} {[%emt 00:00:36]} 37. Ke3 {[%clk
00:10:31]} {[%emt 00:04:31]} g5 {[%clk 00:10:38]} {[%emt 00:01:19]} 38. Rc5
{[%clk 00:08:24]} {[%emt 00:02:38]} Kg6 {[%clk 00:09:05]} {[%emt 00:02:03]} 39.
Rxb4 {[%clk 00:01:01]} {[%emt 00:07:53]} Rf6 {[%clk 00:09:15]} {[%emt
00:00:20]} 40. Rf5 {[%clk 00:01:07]} {[%emt 00:00:24]} Rc6 {[%clk 00:09:25]}
{[%emt 00:00:20]} 41. c4 {[%clk 00:00:54]} {[%emt 00:00:42]} Rh2 {[%clk
00:08:49]} {[%emt 00:01:06]} 42. Rb7 {[%clk 00:00:59]} {[%emt 00:00:26]} f6
{[%clk 00:08:43]} {[%emt 00:00:36]} 43. Kd3 {[%clk 00:00:49]} {[%emt 00:00:38]}
Rd6+ {[%clk 00:08:42]} {[%emt 00:00:34]} 44. Kc3 {[%clk 00:00:45]} {[%emt
00:00:34]} Re2 {[%clk 00:08:52]} {[%emt 00:00:19]} 45. c5 {[%clk 00:00:57]}
{[%emt 00:00:18]} 1-0